bitfinex/quotes_ETHUSD_20260113
["timestamp","ask_amount","ask_price","bid_price","bid_amount"]
[1768321757321,3.46838891,3171.7,3171.1,0.247]
[1768321757504,3.46838891,3171.7,3171.0,2.41205791]
[1768321757505,0.03941228,3171.6,3171.0,0.247]
[1768321757708,0.66607117,3171.5,3170.8,0.247]
[1768321758080,0.66607117,3171.5,3170.7,0.247]
[1768321758491,0.66607117,3171.5,3170.7,3.40086011]
[1768321758794,3.15318156,3171.4,3170.7,3.40087059]
[1768321759595,3.15318156,3171.4,3170.7,5.8129285]
[1768321759926,3.85041267,3171.4,3170.7,5.8129285]
[1768321760293,0.69723111,3171.4,3170.7,8.96680619]
[1768321760607,6.30625416,3171.5,3170.8,2.41205791]
[1768321760813,6.30596544,3171.6,3170.8,0.247]
[1768321761212,8.71638862,3171.6,3170.5,0.001]
[1768321761411,2.41042318,3171.4,3170.5,0.001]
[1768321761712,2.41042318,3171.3,3169.8,2.65905791]
[1768321761914,0.24104232,3171.2,3170.0,3.15453385]
[1768321762093,0.24104232,3171.2,3169.8,2.41205791]
[1768321762094,2.69684167,3171.1,3169.8,2.41205791]
[1768321762504,2.69684167,3171.1,3169.8,2.65905791]
[1768321762993,8.7175818,3171.0,3169.8,0.247]
[1768321763201,6.30715862,3171.0,3169.8,2.65905791]
[1768321763403,3.06583904,3170.9,3169.5,2.41205791]
[1768321765119,6.30755644,3170.8,3169.6,8.72200237]
[1768321765428,6.30755644,3170.8,3169.7,2.41205791]
[1768321766388,9.46133466,3170.8,3169.7,2.41205791]
[1768321767008,9.46133466,3170.8,3169.8,0.247]
[1768321767211,1.25271737,3170.7,3169.8,0.247]
[1768321767390,1.25271737,3170.7,3169.7,2.41205791]
[1768321769432,6.30795432,3170.6,3169.8,0.247]
[1768321769726,6.30795432,3170.6,3169.8,2.65905791]
[1768321770232,6.30795432,3170.6,3170.1,0.001]
[1768321770428,0.75606717,3170.5,3169.8,2.65905791]
[1768321771523,3.15417612,3170.4,3169.8,2.65905791]
[1768321773053,3.91019259,3170.5,3169.9,2.41205791]
[1768321773419,0.75606717,3170.5,3169.9,2.41205791]
[1768321773618,6.30715862,3171.0,3170.1,2.41205791]
[1768321775464,6.30715862,3171.0,3170.2,2.62875744]
[1768321775465,3.15357931,3171.0,3170.2,2.62875744]
[1768321775750,0.002,3171.1,3170.4,2.38175744]
[1768321778555,0.002,3171.1,3170.5,2.62875744]
[1768321779754,0.002,3171.1,3170.2,5.53607476]
[1768321780048,0.002,3171.1,3170.4,0.247]
[1768321780646,0.89172148,3171.1,3170.4,0.247]
[1768321781773,8.24563614,3170.8,3168.8,2.38175744]
[1768321781920,0.85230299,3171.1,3169.7,2.38175744]
[1768321782124,0.85230299,3171.1,3169.9,2.38175744]
[1768321782322,0.89172148,3171.1,3169.9,2.38175744]
[1768321782522,6.30715862,3171.0,3169.9,2.38175744]
[1768321782930,6.30715862,3171.0,3170.0,2.38175744]
[1768321783659,3.15357931,3171.0,3170.0,2.38175744]
[1768321783964,0.002,3171.4,3169.9,6.30934728]
[1768321783965,0.002,3171.4,3170.6,2.38175744]
[1768321784134,3.15328098,3171.3,3170.7,2.62875744]
[1768321784459,3.15328098,3171.3,3170.7,2.62075744]
[1768321784628,0.002,3171.4,3170.7,2.62075744]
[1768321785262,0.002,3170.8,3170.7,2.62075744]
[1768321786042,1e-08,3171.1,3170.8,2.38175744]
[1768321786376,0.002,3171.4,3170.8,2.38175744]
[1768321786532,0.002,3172.2,3172.1,2.38175744]
[1768321786855,0.002,3172.6,3172.1,2.62075746]
[1768321787168,3.15139291,3173.2,3172.1,2.62075746]
[1768321787338,6.30278582,3173.2,3172.1,2.62075746]
[1768321787755,12.60557164,3173.2,3172.1,2.37375746]
[1768321788068,12.60557164,3173.2,3172.2,1e-08]
[1768321788069,1.29995081,3173.1,3172.2,1e-08]
[1768321788239,0.24699999,3172.3,3171.8,2.38175744]
[1768321788445,0.24699999,3172.3,3171.9,0.247]
[1768321789042,0.24699999,3172.3,3166.8,8.81438089]
[1768321789043,6.59101865,3172.3,3171.0,2.38175744]
[1768321789370,0.69850669,3172.2,3171.4,2.38175744]
[1768321789663,0.65910187,3172.2,3171.5,5.78182628]
[1768321789869,0.65910187,3172.2,3171.7,2.38175744]
[1768321790841,3.81157765,3172.2,3171.7,2.38175744]
[1768321792374,0.65910187,3172.2,3171.7,2.38175744]
[1768321792768,3.81157213,3172.2,3171.7,2.38175744]
[1768321792968,0.65910187,3172.2,3171.7,2.38175744]
[1768321793174,3.81150421,3172.2,3171.7,2.38175744]
[1768321793378,0.65910187,3172.2,3171.7,2.38175744]
[1768321793553,3.81151012,3172.2,3171.7,2.38175744]
[1768321794154,6.96391837,3172.2,3171.7,2.38175744]
[1768321794346,6.96391837,3172.2,3171.5,0.247]
[1768321794347,0.69639184,3172.1,3171.5,2.62875744]
[1768321795078,3.88837916,3172.1,3171.5,2.62875744]
[1768321795373,3.15258125,3172.1,3171.5,2.62875744]
[1768321795742,0.03940731,3172.0,3171.5,2.62875744]
[1768321796248,6.3051625,3172.1,3171.6,0.247]
[1768321796476,3.15258125,3172.1,3171.6,0.247]
[1768321796669,3.15258125,3172.1,3171.6,2.62875744]
[1768321796870,0.63049796,3172.0,3171.6,2.62875744]
[1768321797540,3.15242095,3172.2,3171.6,2.62875744]
[1768321798581,6.30489848,3172.2,3171.7,0.247]
[1768321798871,6.30489848,3172.2,3171.8,0.001]
[1768321799379,5.34610302,3172.8,3171.3,2.38175744]
[1768321799380,0.24699999,3171.9,3171.3,2.38175744]
[1768321799563,0.24699999,3171.9,3171.4,2.62875744]
[1768321800577,0.24699999,3171.9,3171.4,2.38175744]
[1768321800743,0.03940979,3171.8,3171.5,0.247]
[1768321800947,0.28640854,3171.9,3170.9,2.38175744]
[1768321801157,0.24806776,3171.8,3170.6,2.38175744]
[1768321801357,6.30576662,3171.7,3170.6,2.38175744]
[1768321801645,6.30576662,3171.7,3171.0,2.38175744]
[1768321802279,6.30576662,3171.7,3170.7,2.62875744]
[1768321802492,2.1942691,3171.6,3170.4,2.38175744]
[1768321802691,1.1652919,3171.5,3170.5,0.247]
[1768321802851,1.1652919,3171.5,3170.6,0.247]
[1768321803382,9.45954468,3171.4,3170.0,2.38175744]
[1768321803582,9.45954468,3171.4,3170.2,3.15436766]
[1768321804082,9.45954468,3171.4,3170.2,3.1543381]
[1768321804385,9.45954468,3171.4,3170.0,5.53631998]
[1768321804386,1.06248366,3171.3,3170.3,3.40126135]
[1768321805094,6.30636312,3171.4,3170.5,2.21776299]
[1768321805250,6.30576662,3171.7,3170.5,5.37178509]
[1768321805450,9.45864993,3171.7,3170.6,2.21776299]
[1768321805652,2.21556383,3171.6,3170.3,0.247]
[1768321805864,2.21556383,3171.6,3170.3,5.61903678]
[1768321806066,1.16742138,3171.5,3170.3,5.37203678]
[1768321806500,3.38298521,3171.5,3170.2,3.15435475]
[1768321806656,3.38298521,3171.5,3170.3,3.40126268]
[1768321807553,6.30636312,3171.4,3170.3,3.40126268]
[1768321807747,3.15318156,3171.4,3170.4,2.21776299]
[1768321807959,6.30576662,3171.7,3170.6,2.21776299]
[1768321808692,9.45864993,3171.7,3170.3,2.46476299]
[1768321808884,2.21556383,3171.6,3170.4,0.247]
[1768321809079,1.16742138,3171.5,3170.3,2.21776299]
[1768321809283,1.16742138,3171.5,3170.3,2.46476299]
[1768321809482,6.30636312,3171.4,3170.3,2.46476299]
[1768321809996,6.30636312,3171.4,3170.3,0.247]
[1768321810294,6.30636312,3171.4,3170.4,2.21776299]
[1768321810482,7.36904281,3171.4,3170.4,2.46423929]
[1768321812022,3.15318156,3171.4,3170.6,1.971763]
[1768321812201,0.24806776,3171.8,3170.6,1.971763]
[1768321812202,3.15288331,3171.7,3170.6,1.971763]
[1768321812377,0.002,3171.4,3170.6,1.971763]
[1768321812691,0.002,3171.7,3170.6,1.971763]
[1768321813265,0.04141104,3171.7,3170.6,1.971763]
[1768321813464,0.002,3171.7,3170.7,0.82799163]
[1768321813680,0.002,3171.7,3170.7,0.247]
[1768321814107,0.002,3171.7,3170.6,0.001]
[1768321814401,0.002,3171.7,3170.7,0.247]
[1768321814698,0.002,3171.7,3170.7,5.61861538]
[1768321814907,0.002,3171.7,3170.7,8.77249307]
[1768321815079,0.002,3171.7,3170.9,2.21776299]
[1768321815777,0.002,3171.7,3170.9,0.247]
[1768321816974,0.002,3171.7,3170.6,2.21876299]
[1768321817289,0.002,3171.7,3170.7,0.247]
[1768321817290,0.04141104,3171.7,3170.7,0.247]
[1768321817698,2.27586588,3171.7,3170.6,0.001]
[1768321817995,6.30616426,3171.5,3170.6,0.001]
[1768321818411,9.45924639,3171.5,3170.6,0.001]
[1768321818714,6.30616426,3171.5,3170.6,0.001]
[1768321820196,9.45924639,3171.5,3170.6,0.001]
[1768321820384,11.69370123,3171.5,3170.6,0.001]
[1768321820582,1.318242,3171.4,3170.6,0.001]
[1768321821976,6.30656196,3171.3,3170.6,0.001]
[1768321824107,6.30634162,3171.5,3170.6,0.001]
[1768321824706,6.30634162,3171.5,3170.6,2.13050097]
[1768321825006,11.69396727,3171.5,3170.6,0.001]
[1768321825192,1.16939673,3171.4,3170.6,0.001]
[1768321825714,1.16939673,3171.4,3170.9,0.001]
[1768321826385,6.30656196,3171.3,3170.9,0.001]
[1768321826807,6.30656196,3171.3,3170.3,2.12950097]
[1768321826808,11.69429778,3171.3,3170.3,2.12950097]
[1768321826985,3.58494154,3171.2,3170.1,0.247]
[1768321827313,2.23445484,3171.1,3169.1,3.85]
[1768321827478,2.23445484,3170.9,3169.5,3.15502017]
[1768321827673,2.23445484,3170.7,3169.5,3.15503596]
[1768321827878,2.23445484,3170.7,3169.6,2.12950097]
[1768321828078,0.24814548,3170.6,3169.6,5.28445389]
[1768321828310,3.15407664,3170.5,3169.8,2.12950097]
[1768321828514,0.247,3171.0,3169.9,2.12950097]
[1768321828807,2.48145484,3171.0,3169.9,2.12950097]
[1768321829011,2.23445484,3170.8,3169.6,2.12950097]
[1768321829792,2.23445484,3170.8,3169.7,2.12950097]
[1768321830114,0.22344548,3170.7,3169.7,5.28436698]
[1768321830407,0.22344548,3170.7,3169.7,2.12950097]
[1768321830709,6.30795432,3170.6,3169.8,2.12950097]
[1768321830916,6.30795432,3170.6,3169.6,3.15492495]
[1768321831116,6.30795432,3170.6,3169.7,2.12950097]
[1768321831333,8.54240916,3170.6,3169.7,3.15487119]
[1768321831498,8.54240916,3170.6,3169.6,3.15492324]
[1768321831698,6.30795432,3170.6,3169.7,3.47034875]
[1768321832308,6.49,3171.6,3169.8,2.37650097]
[1768321832309,3.15379596,3170.8,3169.8,2.37650097]
[1768321832509,6.30735752,3170.9,3170.0,2.12950097]
[1768321832734,3.15367876,3170.9,3170.0,2.12950097]
[1768321832886,3.15353205,3171.1,3170.2,2.12950097]
[1768321833347,3.15322649,3171.4,3170.3,2.37650097]
[1768321833625,6.30645298,3171.4,3170.3,2.37650097]
[1768321834189,3.15322649,3171.4,3170.3,2.37650097]
[1768321834388,3.15322649,3171.4,3170.4,0.2376501]
[1768321834630,6.30645298,3171.4,3170.4,0.2376501]
[1768321834833,6.30616426,3171.5,3170.4,0.2376501]
[1768321835149,8.47392364,3171.5,3170.4,3.39181138]
[1768321836940,3.15308213,3171.5,3170.5,2.29611196]
[1768321837119,3.15308213,3171.5,3170.7,2.29611196]
[1768321837495,0.002,3171.7,3170.8,2.54311196]
[1768321838940,0.002,3171.7,3171.0,2.29611196]
[1768321839112,3.15210358,3172.5,3171.5,2.29611196]
[1768321839442,3.15169088,3172.9,3171.7,2.29611196]
[1768321839652,6.30338176,3172.9,3171.7,2.29611196]
[1768321840613,3.15169088,3172.9,3171.7,2.29611196]
[1768321840935,2.16775938,3172.6,3171.8,0.247]
[1768321841915,2.20716048,3172.5,3171.8,0.247]
[1768321842116,2.16775938,3172.4,3171.1,3.15346646]
[1768321842402,2.16775938,3172.4,3170.7,3.15480425]
[1768321842403,2.16775938,3172.2,3170.7,0.001]
[1768321842707,1.09809396,3172.5,3170.9,3.15366015]
[1768321842708,2.16775938,3172.0,3170.9,3.15366015]
[1768321842913,2.41475938,3172.0,3170.9,3.15366015]
[1768321843303,8.4731284,3171.9,3170.8,3.15377822]
[1768321843607,0.87201284,3171.8,3170.8,6.30755644]
[1768321843808,0.87201284,3171.8,3170.8,3.15377822]
[1768321844038,3.03977222,3171.8,3170.8,3.15377822]
[1768321844335,3.03977222,3171.8,3170.9,2.29611196]
[1768321844336,0.87201284,3171.8,3170.9,2.29611196]
[1768321844633,3.15268451,3171.9,3170.9,2.29611196]
[1768321844634,6.30536902,3171.9,3170.9,2.29611196]
[1768321844812,3.15268451,3171.9,3170.9,2.29611196]
[1768321845319,3.15268451,3171.9,3170.9,0.247]
[1768321845520,3.15268451,3171.9,3170.9,6.55433793]
[1768321845834,8.4731284,3171.9,3170.9,3.40065917]
[1768321846041,0.87201284,3171.8,3170.9,3.40065917]
[1768321846231,2.16775938,3171.7,3170.9,3.40065917]
[1768321846807,2.16775938,3171.7,3170.9,6.55433793]
[1768321847420,4.02480667,3171.8,3170.9,6.55433793]
[1768321849320,4.02480667,3171.8,3170.9,8.85044989]
[1768321849918,6.30437522,3172.4,3171.1,2.29611196]
[1768321850823,0.002,3171.6,3171.1,2.29611196]
[1768321851028,0.002,3171.6,3171.3,2.29611196]
[1768321851239,0.002,3171.6,3171.4,2.54311196]
[1768321851553,1e-08,3171.9,3171.4,2.86655083]
[1768321851764,3.15169088,3172.9,3171.4,2.86655083]
[1768321852085,0.002,3173.2,3171.5,2.29611196]
[1768321852225,0.002,3173.5,3172.7,2.29611196]
[1768321852414,0.002,3173.5,3172.8,0.247]
[1768321853149,0.002,3173.5,3172.9,3.15169088]
[1768321853644,0.002,3173.5,3172.8,3.39875088]
[1768321853835,0.002,3173.5,3172.9,2.29611196]
[1768321854145,1e-08,3173.6,3172.9,2.29611196]
[1768321855645,1e-08,3173.6,3173.1,2.29611196]
[1768321856623,0.002,3173.9,3173.1,2.29611196]
[1768321856821,0.002,3173.9,3173.2,0.247]
[1768321857028,0.002,3173.9,3173.3,0.2543112]
[1768321857675,0.002,3173.9,3173.4,6.3023886]
[1768321857884,1e-08,3174.0,3173.4,6.3023886]
[1768321858191,1.68082416,3176.6,3174.2,2.29611196]
[1768321858192,0.002,3175.6,3174.2,2.29611196]
[1768321858475,0.002,3175.6,3173.4,18.93396179]
[1768321858476,3.36799877,3175.6,3174.3,2.68482943]
[1768321858673,8.68478098,3175.6,3174.3,2.29611196]
[1768321858872,2.20712325,3175.5,3173.6,2.29611196]
[1768321859081,2.20712325,3175.5,3173.7,0.247]
[1768321859251,2.20712325,3175.5,3173.6,2.29611196]
[1768321859454,2.16775938,3175.5,3173.8,0.247]
[1768321859658,6.29881582,3175.2,3173.9,3.15069787]
[1768321859852,3.14940791,3175.2,3174.0,2.29611196]
[1768321860373,11.61598311,3175.2,3173.9,0.247]
[1768321860574,2.16775938,3175.1,3173.9,0.247]
[1768321860740,2.16775938,3174.9,3173.8,3.15077705]
[1768321860937,0.21677594,3174.8,3173.9,0.247]
[1768321861566,0.21677594,3174.8,3174.0,6.30119722]
[1768321861771,2.16775938,3174.9,3174.0,6.30119722]
[1768321861976,3.14963293,3175.0,3174.0,8.59730918]
[1768321862174,6.29932655,3175.0,3174.0,5.44671057]
[1768321862381,5.31707464,3175.3,3174.0,8.59730918]
[1768321862577,2.38673532,3175.6,3174.1,2.29611196]
[1768321862779,3.36802744,3175.6,3174.3,2.29611196]
[1768321862943,5.53578682,3175.6,3174.4,0.247]
[1768321863143,5.53578682,3175.6,3174.3,2.29611196]
[1768321863144,2.16775938,3175.5,3174.2,0.85973092]
[1768321863487,2.16775938,3175.3,3174.3,0.247]
[1768321863691,3.14940791,3175.2,3174.3,3.39720598]
[1768321864185,6.29841908,3175.4,3174.3,6.54750683]
[1768321864358,0.21897594,3175.6,3174.4,2.29611196]
[1768321864550,3.15103614,3175.6,3174.4,2.29611196]
[1768321865020,0.002,3174.5,3174.4,2.29611196]
[1768321865234,3.14875462,3175.9,3174.4,2.29611196]
[1768321865383,0.002,3174.8,3174.4,2.29611196]
[1768321865581,3.39553688,3176.1,3174.6,2.09527395]
[1768321865582,3.1486346,3176.0,3174.6,2.09527395]
[1768321865793,3.1486346,3176.0,3174.3,9.69780768]
[1768321865794,0.65441567,3175.9,3174.8,2.09527395]
[1768321866005,0.002,3176.1,3174.9,2.34227395]
[1768321866615,3.15056865,3176.1,3174.9,2.34227395]
[1768321867177,0.002,3176.1,3174.9,2.34227395]
[1768321867379,3.15051547,3176.1,3174.9,2.34227395]
[1768321867581,0.002,3176.1,3174.9,2.34227395]
[1768321867883,0.002,3176.1,3175.0,8.62871393]
[1768321868513,0.002,3176.1,3175.1,2.09527395]
[1768321869424,0.002,3176.1,3175.2,0.247]
[1768321869630,0.002,3176.1,3175.2,2.34227395]
[1768321869793,0.002,3176.1,3175.4,2.09527395]
[1768321869999,3.14752447,3177.1,3175.8,2.09527395]
[1768321870316,6.29507729,3177.1,3175.9,0.247]
[1768321871210,3.14752447,3177.1,3175.9,0.247]
[1768321871513,3.14752447,3177.1,3175.9,2.34227395]
[1768321871713,6.29649739,3177.4,3176.0,5.24388855]
[1768321871889,6.29649739,3177.4,3175.5,1.15432001]
[1768321871890,2.2517042,3177.2,3175.5,1.15432001]
[1768321872233,2.2517042,3177.0,3175.7,3.14882711]
[1768321872436,2.29105073,3176.9,3175.8,0.247]
[1768321873216,2.29105073,3176.9,3175.8,3.39581261]
[1768321873414,2.29105073,3176.9,3175.8,0.247]
[1768321873736,6.2956434,3176.8,3175.8,0.247]
[1768321873941,1.17344277,3176.7,3175.8,0.247]
[1768321874441,3.42514697,3176.7,3175.8,0.247]
[1768321874937,0.03935024,3176.6,3175.8,0.247]
[1768321875106,0.03935024,3176.6,3175.8,3.39579376]
[1768321875638,0.03935024,3176.6,3175.3,3.14923076]
[1768321875639,2.29105444,3176.6,3175.3,3.14923076]
[1768321875843,8.8943919,3176.5,3175.4,0.247]
[1768321876138,8.54794218,3176.5,3175.4,0.247]
[1768321876438,2.18348014,3176.4,3175.4,0.247]
[1768321876608,3.14811899,3176.5,3175.4,0.247]
[1768321876807,4.3214489,3176.7,3175.4,2.32015254]
[1768321877130,3.14800613,3176.7,3175.6,2.07315254]
[1768321877734,2.18348014,3176.7,3175.6,6.29802242]
[1768321877934,6.29544524,3176.9,3175.6,6.29802242]
[1768321878237,6.29544524,3176.9,3175.6,8.37117496]
[1768321878425,0.002,3176.2,3175.6,3.14901121]
[1768321878626,0.002,3176.2,3175.7,0.247]
[1768321878827,0.002,3176.2,3175.6,3.14901121]
[1768321879005,0.002,3176.2,3175.7,0.247]
[1768321880947,0.002,3176.2,3175.7,3.39589098]
[1768321881419,0.002,3176.2,3175.7,0.247]
[1768321881953,0.002,3176.2,3175.7,3.3959109]
[1768321882350,0.002,3176.2,3175.7,0.247]
[1768321882832,0.002,3176.2,3175.7,3.39589768]
[1768321883438,0.002,3176.2,3175.1,3.14943929]
[1768321883439,2.18548014,3176.2,3175.1,3.14941863]
[1768321883617,0.21854801,3176.1,3175.2,3.39635726]
[1768321884042,3.1486146,3176.0,3175.3,3.14929486]
[1768321884244,6.2972292,3176.0,3175.2,3.14937311]
[1768321884416,6.2972292,3176.0,3175.3,0.247]
[1768321884624,6.2972292,3176.0,3175.0,3.14958246]
[1768321884625,2.18348014,3175.9,3175.0,3.14958246]
[1768321884841,0.84807093,3175.8,3175.1,3.14949314]
[1768321885143,0.84807093,3175.8,3174.9,3.14969123]
[1768321885144,3.03155107,3175.8,3174.9,3.149661]
[1768321885345,2.18348014,3175.6,3174.7,3.39784958]
[1768321885551,0.67428624,3175.5,3174.7,3.15084958]
[1768321885862,0.28577664,3175.4,3174.7,0.248]
[1768321886031,3.43501852,3175.4,3174.7,0.248]
[1768321886219,0.67494607,3175.3,3174.7,0.001]
[1768321886726,0.67494607,3175.2,3174.7,0.001]
[1768321886918,0.28577664,3175.4,3174.7,3.15090161]
[1768321887118,0.67502481,3175.3,3174.7,3.15090161]
[1768321887339,0.67502481,3175.2,3174.7,3.15090161]
[1768321887539,0.67502481,3175.1,3174.7,3.15090161]
[1768321887768,0.28577664,3175.4,3174.7,3.15090161]
[1768321887971,0.67569269,3175.3,3174.7,3.15090161]
[1768321888269,0.67569269,3175.3,3174.7,0.001]
[1768321888270,0.67569269,3175.2,3174.7,0.001]
[1768321888444,0.67569269,3175.1,3174.7,0.001]
[1768321888770,0.67569269,3175.0,3174.7,0.001]
[1768321888978,6.29867168,3175.3,3174.7,0.001]
[1768321889165,1.30575694,3175.2,3174.7,0.001]
[1768321889340,0.67588977,3175.1,3174.7,0.001]
[1768321889539,0.67588977,3175.0,3174.7,0.001]
[1768321889772,0.67588977,3174.9,3174.7,0.001]
[1768321889974,0.62986717,3175.2,3174.7,0.001]
[1768321890155,3.82560052,3175.1,3174.7,0.001]
[1768321890361,0.67604841,3175.0,3174.7,0.001]
[1768321890673,0.67604841,3174.9,3174.7,0.001]
[1768321890878,3.91001601,3175.1,3174.7,0.001]
[1768321891065,0.67602714,3175.0,3174.7,0.001]
[1768321891271,0.76047764,3175.1,3174.7,0.001]
[1768321891571,2.18348014,3175.5,3174.7,0.001]
[1768321891572,0.67619426,3175.0,3174.7,0.001]
[1768321891776,0.67619426,3174.9,3174.7,0.001]
[1768321891945,2.18348014,3175.3,3174.7,0.001]
[1768321892144,0.67619511,3175.2,3174.7,0.001]
[1768321892453,0.67619511,3175.1,3174.7,0.001]
[1768321892661,0.67619511,3175.0,3174.7,0.001]
[1768321892971,0.67619511,3174.9,3174.7,0.001]
[1768321893273,2.18348014,3175.6,3174.7,0.001]
[1768321893444,0.89475102,3175.5,3174.7,0.001]
[1768321893642,0.67640301,3175.4,3174.7,0.001]
[1768321893871,0.67640301,3175.3,3174.7,0.001]
[1768321894041,0.6199028,3175.2,3174.7,2.07415254]
[1768321894242,0.6199028,3175.1,3174.7,2.07415254]
[1768321894436,3.14911037,3175.5,3174.7,3.35826568]
[1768321894638,2.18348014,3175.5,3174.7,3.35826568]
[1768321894837,3.14905533,3175.6,3174.7,6.5081696]
[1768321895048,3.14905533,3175.6,3174.7,3.35826568]
[1768321895263,3.14905533,3175.6,3174.7,6.5081696]
[1768321895578,3.39583953,3175.8,3174.8,0.65081696]
[1768321895874,10.22,3176.6,3174.9,2.29989524]
[1768321895875,3.15045894,3176.2,3174.9,2.29989524]
[1768321896376,0.002,3176.2,3175.1,2.05289524]
[1768321897284,3.15013512,3176.5,3175.5,2.05289524]
[1768321897487,3.15013512,3176.5,3175.6,2.05289524]
[1768321897488,0.002,3176.5,3175.6,2.05289524]
[1768321897778,6.29827508,3176.5,3175.7,0.20528952]
[1768321897949,8.56076772,3176.5,3175.6,0.247]
[1768321898156,8.56076772,3176.5,3175.0,8.35210782]
[1768321898157,8.56076772,3176.5,3175.5,0.247]
[1768321898343,8.56076772,3176.5,3175.5,3.39608337]
[1768321898952,3.15013754,3176.5,3175.5,3.39608337]
[1768321899152,6.29827508,3176.5,3175.5,0.247]
[1768321899357,0.62982751,3176.4,3175.3,2.05289524]
[1768321899554,2.3018466,3176.3,3175.2,3.3963923]
[1768321899846,2.26249264,3176.3,3175.3,3.14925294]
[1768321900377,6.29683268,3176.2,3175.1,3.14950112]
[1768321900557,6.29683268,3176.2,3175.3,0.247]
[1768321900757,7.21574796,3176.2,3175.3,0.247]
[1768321900953,2.26249264,3176.1,3175.0,3.14959138]
[1768321901156,2.26249264,3176.1,3175.1,0.247]
[1768321901842,4.06733162,3176.2,3175.1,2.29989524]
[1768321902283,7.21574796,3176.2,3175.1,2.29989524]
[1768321902483,7.21574796,3176.2,3175.2,0.85990929]
[1768321902680,7.21574796,3176.2,3175.3,3.14930872]
[1768321902898,7.21574796,3176.2,3175.2,4.00931479]
[1768321903285,4.06733162,3176.2,3175.2,7.1587227]
[1768321903615,7.21574796,3176.2,3175.2,4.00931479]
[1768321903814,0.7215748,3176.1,3175.2,4.00931479]
[1768321904015,0.7215748,3176.1,3175.2,0.85990929]
[1768321904320,0.7215748,3176.1,3175.1,5.44936318]
[1768321904830,3.1486146,3176.0,3175.1,3.39646794]
[1768321904991,6.2972292,3176.0,3175.1,3.39646794]
[1768321905918,3.1486146,3176.0,3175.1,3.39646794]
[1768321906132,6.2972292,3176.0,3175.1,3.39646794]
[1768321906302,7.22535886,3176.0,3175.1,3.39646794]
[1768321906503,2.26249264,3175.9,3175.1,3.39646794]
[1768321906830,5.41125281,3175.9,3175.1,3.39646794]
[1768321907127,2.26249264,3175.8,3175.1,3.14946794]
[1768321907500,2.26249264,3175.8,3175.1,3.14944218]
[1768321907695,3.21129336,3175.8,3175.0,0.001]
[1768321908005,2.26249264,3175.7,3175.0,0.001]
[1768321908531,2.26249264,3175.7,3175.0,3.15051206]
[1768321908734,0.94880072,3175.8,3175.0,0.001]
[1768321908905,3.39577461,3175.9,3175.0,0.001]
[1768321909108,2.26249264,3175.8,3175.0,0.001]
[1768321910016,3.73535207,3175.9,3175.0,0.001]
[1768321910201,6.88412668,3175.9,3175.0,0.001]
[1768321910597,6.63712668,3175.9,3175.0,0.001]
[1768321910824,8.89961932,3175.9,3175.0,0.001]
[1768321910997,2.26249264,3175.7,3175.0,0.001]
[1768321911604,1.20482639,3175.8,3175.0,0.001]
[1768321911835,6.63712668,3175.9,3175.0,0.001]
[1768321912637,3.48835207,3175.9,3175.0,0.001]
[1768321912998,6.63712668,3175.9,3175.0,2.05389524]
[1768321913203,3.48835207,3175.9,3175.0,2.05389524]
[1768321913403,6.63712668,3175.9,3175.0,2.05389524]
[1768321913704,3.48835207,3175.9,3175.0,2.05389524]
[1768321913905,3.14877461,3175.9,3175.0,2.88924409]
[1768321914602,3.14877461,3175.9,3175.1,2.05289524]
[1768321914830,6.29754922,3175.9,3175.0,0.83634885]
[1768321915019,6.29703094,3176.1,3175.1,3.1495071]
[1768321915339,6.29703094,3176.1,3175.0,3.98593372]
[1768321915515,0.88065236,3176.0,3175.0,0.001]
[1768321915837,0.88065236,3176.0,3175.0,3.15058478]
[1768321916137,2.26249264,3175.9,3175.0,0.001]
[1768321917214,2.26249264,3175.7,3175.0,0.001]
[1768321917615,2.26249264,3175.7,3175.3,0.001]
[1768321917815,2.26249264,3175.6,3175.0,0.001]
[1768321918043,6.29762578,3175.8,3175.0,0.001]
[1768321918248,3.14881289,3175.8,3175.0,0.001]
[1768321918736,3.14875345,3175.9,3175.0,0.001]
[1768321918936,3.15011899,3176.5,3175.1,2.05289524]
[1768321919240,0.002,3176.5,3175.3,2.05289524]
[1768321920347,0.002,3176.5,3175.4,2.29989524]
[1768321921153,0.002,3176.5,3175.2,10.2563898]
[1768321921154,0.002,3176.5,3175.5,6.29822074]
[1768321921346,2.26449264,3176.5,3175.5,0.247]
[1768321921651,2.52829462,3176.4,3175.2,0.247]
[1768321921956,12.59009788,3177.1,3176.0,2.05289524]
[1768321921957,3.14752447,3177.1,3176.0,2.05289524]
[1768321922136,2.26249264,3177.0,3175.4,6.29840807]
[1768321922447,2.26249264,3176.8,3175.4,6.54540807]
[1768321922647,6.29504894,3177.1,3175.5,2.08438634]
[1768321922858,6.29504894,3177.1,3175.4,9.69461761]
[1768321922859,8.80454158,3177.1,3175.6,3.23079564]
[1768321923150,0.247,3177.1,3175.9,2.05289524]
[1768321923335,0.247,3177.1,3175.8,9.44643867]
[1768321923336,0.002,3177.4,3176.1,2.05289524]
[1768321923512,6.29647674,3177.4,3176.1,2.05289524]
[1768321923949,0.03927945,3177.3,3176.1,2.05289524]
[1768321924121,2.26249264,3177.3,3176.2,0.20528952]
[1768321924432,2.26249264,3177.3,3175.8,8.35052102]
[1768321924433,2.50949264,3177.3,3175.8,8.35052102]
[1768321924624,0.247,3177.3,3176.0,2.29989524]
[1768321925346,3.1474254,3177.2,3176.1,6.29703094]
[1768321925543,3.39434489,3177.3,3176.1,6.29703094]
[1768321925544,0.247,3177.3,3176.2,2.01600127]
[1768321925745,3.39435636,3177.3,3176.2,2.01600127]
[1768321925916,3.39435636,3177.3,3176.3,0.83130322]
[1768321926112,6.54171272,3177.3,3176.3,0.83130322]
[1768321926513,6.54171272,3177.3,3176.1,3.39551547]
[1768321926741,6.54171272,3177.3,3176.1,6.54403094]
[1768321926941,3.39435636,3177.3,3176.1,6.54403094]
[1768321927621,0.002,3177.4,3176.2,2.01600127]
[1768321928050,0.002,3177.4,3176.3,2.01600127]
[1768321928349,0.002,3177.4,3176.5,2.01600127]
[1768321928646,0.002,3177.4,3176.7,2.01600127]
[1768321929022,0.002,3177.4,3176.6,0.247]
[1768321929224,0.002,3177.4,3176.7,3.14792079]
[1768321930332,0.002,3177.1,3176.7,3.14792079]
[1768321930526,0.002,3177.1,3176.8,0.33949208]
[1768321931318,0.002,3177.1,3176.8,3.48728801]